bitfinex/quotes_ETHUSD_20260125
["timestamp","ask_amount","ask_price","bid_price","bid_amount"]
[1769368936554,2.0,2832.3,2830.7,0.10488777]
[1769368936835,2.0,2832.3,2830.8,0.02558412]
[1769368937036,2.25420096,2832.5,2830.8,0.02558412]
[1769368937241,0.88363319,2832.5,2830.7,0.10488777]
[1769368938050,0.001,2832.5,2831.2,0.10488777]
[1769368938361,0.001,2832.5,2831.7,0.88286188]
[1769368938814,0.001,2832.5,2831.8,0.10488777]
[1769368939328,0.001,2832.5,2831.3,0.88296765]
[1769368939533,0.001,2832.5,2831.4,0.88295369]
[1769368939840,0.001,2832.5,2830.8,15.40699151]
[1769368939841,0.001,2832.5,2831.0,0.88306086]
[1769368940044,0.001,2832.5,2831.1,0.88304777]
[1769368940219,0.001,2832.5,2831.2,0.9878906]
[1769368940409,0.001,2832.5,2830.9,0.10488777]
[1769368940613,0.001,2832.5,2831.3,0.10488777]
[1769368940814,0.001,2832.5,2831.5,0.10488777]
[1769368941014,0.001,2832.5,2831.7,0.10488777]
[1769368941267,0.882294,2833.6,2831.7,0.10488777]
[1769368941550,0.882294,2833.6,2831.5,0.10488777]
[1769368941551,8.756042,2833.4,2831.2,0.88300266]
[1769368941719,0.2335703,2833.2,2831.2,0.98790232]
[1769368942324,0.2335703,2833.0,2830.9,0.88309542]
[1769368942529,0.2335703,2833.0,2831.0,0.10488777]
[1769368942530,0.128,2833.0,2831.0,0.10488777]
[1769368942712,12.909933,2832.9,2830.6,0.002]
[1769368942918,0.2335703,2832.7,2830.9,0.88310542]
[1769368943154,15.18639752,2832.8,2831.0,0.10488777]
[1769368943362,1.62236332,2833.3,2831.2,0.10488777]
[1769368943519,0.128,2833.1,2831.2,0.10488777]
[1769368943718,0.88236332,2833.3,2831.5,0.10488777]
[1769368944457,0.88234965,2833.4,2831.8,0.10488777]
[1769368944617,1.01027384,2833.6,2831.8,0.10488777]
[1769368944817,3.52870356,2834.0,2832.1,0.10488777]
[1769368945151,0.128,2833.8,2831.8,0.10488777]
[1769368945523,0.128,2833.8,2832.0,0.10488777]
[1769368945718,2.49720179,2833.9,2832.2,0.10488777]
[1769368945919,0.88313037,2834.1,2832.0,0.10488777]
[1769368946130,0.88313037,2834.1,2831.8,0.10488777]
[1769368946352,0.129,2834.1,2832.1,0.88273719]
[1769368946858,0.129,2834.1,2832.2,0.10488777]
[1769368947269,0.129,2834.1,2832.1,0.88273719]
[1769368947452,0.3657457,2834.0,2832.1,0.88273719]
[1769368948144,28.19257229,2833.7,2831.2,0.10488777]
[1769368948348,0.88230104,2833.5,2831.8,0.10488777]
[1769368948537,0.46450485,2833.4,2831.9,0.36363004]
[1769368948744,0.46450485,2833.4,2832.0,0.10488777]
[1769368948938,0.88227232,2833.6,2831.8,0.10488777]
[1769368949532,12.62054929,2833.5,2830.8,0.002]
[1769368949732,12.85411959,2833.2,2830.8,0.002]
[1769368949940,12.85411959,2833.2,2831.5,0.88292193]
[1769368949941,12.62054929,2833.2,2831.5,0.88292193]
[1769368950141,0.88227232,2833.6,2831.3,0.98785253]
[1769368950142,0.3615703,2833.4,2831.3,0.98785253]
[1769368950429,7.90612,2833.1,2831.1,0.88303862]
[1769368950742,13.50291261,2833.3,2830.9,0.10488777]
[1769368950743,0.790612,2833.0,2831.2,0.88301628]
[1769368950949,13.50291261,2833.3,2831.3,0.98787188]
[1769368951148,12.85411959,2833.2,2831.2,0.88301276]
[1769368951459,12.85411959,2833.2,2831.3,0.98786958]
[1769368951661,0.88220763,2833.8,2832.0,0.10488777]
[1769368951960,0.88220763,2833.8,2832.1,0.10488777]
[1769368952151,0.44120382,2833.7,2832.1,0.10488777]
[1769368952657,0.44120382,2833.7,2832.2,0.88270602]
[1769368952836,0.88220763,2833.8,2832.2,0.88270602]
[1769368953035,0.88220763,2833.8,2832.1,0.98760393]
[1769368953453,13.76980428,2833.8,2831.2,3.53201959]
[1769368953655,0.2335703,2833.6,2831.7,0.88283368]
[1769368953855,1.3121167,2833.5,2831.7,0.88283368]
[1769368954060,1.3121167,2833.5,2831.8,0.88283048]
[1769368954449,1.3121167,2833.5,2831.0,3.63714695]
[1769368954647,1.3121167,2833.5,2831.3,0.88296448]
[1769368954648,0.88239446,2833.2,2831.3,0.88296448]
[1769368954861,0.88239446,2833.2,2831.3,0.88298341]
[1769368955064,0.44119723,2833.1,2831.3,0.88298341]
[1769368955558,0.44119723,2833.1,2831.1,0.10488777]
[1769368955858,0.44119723,2833.1,2831.3,0.98785686]
[1769368956261,0.44119723,2833.1,2830.9,0.10488777]
[1769368956262,17.70582395,2833.0,2831.0,0.88307362]
[1769368956462,5.81363,2832.9,2831.0,0.88305244]
[1769368956764,1.8934797,2832.8,2831.1,0.45203836]
[1769368956944,1.8934797,2832.8,2831.3,0.10488777]
[1769368957144,0.88251496,2832.9,2831.3,0.10488777]
[1769368957361,1.32363006,2833.1,2831.1,13.25110633]
[1769368957562,1.32363006,2833.1,2831.4,0.10488777]
[1769368958159,12.88759665,2832.9,2831.1,0.45203836]
[1769368958358,12.88759665,2832.5,2830.8,0.002]
[1769368958541,1.32363006,2833.1,2831.1,0.88303047]
[1769368958542,0.3615703,2832.9,2831.1,0.88303047]
[1769368958740,0.48533325,2833.0,2831.1,0.88303047]
[1769368958942,0.8824879,2832.9,2831.1,0.10488777]
[1769368959138,0.8824879,2832.9,2831.3,0.10488777]
[1769368959342,1.36780077,2833.0,2831.3,0.10488777]
[1769368959563,1.82263021,2832.9,2831.3,0.10488777]
[1769368959776,1.82263021,2832.9,2831.1,0.10488777]
[1769368960068,1.82263021,2832.9,2831.3,0.10488777]
[1769368960838,2.70512282,2832.9,2831.4,0.88295542]
[1769368961038,2.70512282,2832.9,2831.2,0.88300204]
[1769368961265,0.67203849,2832.8,2831.3,0.98785655]
[1769368961456,2.70513837,2832.9,2831.3,0.88296878]
[1769368961656,2.70513837,2832.9,2831.3,0.98785655]
[1769368962054,1.82263021,2832.9,2831.5,0.10488777]
[1769368962247,5.613577,2833.4,2831.5,0.10488777]
[1769368962565,0.2335703,2833.3,2831.5,0.10488777]
[1769368963143,0.2335703,2833.3,2831.6,0.88289306]
[1769368963356,1.11595248,2833.3,2831.7,0.10488777]
[1769368963564,1.11595248,2833.3,2831.7,3.88488777]
[1769368963758,1.11592193,2833.4,2831.8,0.47677808]
[1769368964360,1.11592193,2833.4,2831.8,4.25677808]
[1769368964540,1.11592193,2833.4,2831.8,4.36166585]
[1769368964952,1.11592193,2833.4,2831.8,4.25677808]
[1769368965471,1.11592193,2833.4,2831.9,0.88279953]
[1769368965647,0.88235163,2833.4,2831.9,1.38237632]
[1769368965846,0.88235163,2833.4,2831.8,0.47677808]
[1769368965847,0.88235163,2833.4,2831.8,1.35958579]
[1769368966451,1.01032269,2833.5,2831.9,0.10488777]
[1769368966671,3.89042386,2833.8,2832.1,0.10488777]
[1769368966847,3.65685356,2833.8,2832.2,0.03530823]
[1769368967044,3.52885356,2833.8,2832.3,0.10488777]
[1769368967251,0.44120612,2833.7,2832.3,0.10488777]
[1769368967449,0.8831854,2833.9,2832.5,0.10488777]
[1769368967764,0.88317721,2833.9,2832.3,0.98754359]
[1769368968278,0.001,2833.9,2832.5,0.10488777]
[1769368968776,0.001,2833.9,2832.9,0.10488777]
[1769368969286,0.001,2833.9,2833.0,0.10488777]
[1769368969473,0.88280311,2835.1,2833.4,0.10488777]
[1769368969805,0.001,2835.1,2833.4,0.10488777]
[1769368969973,0.001,2835.1,2833.6,0.10488777]
[1769368971372,0.001,2835.1,2833.7,0.88223876]
[1769368971780,0.001,2835.1,2833.6,3.63394909]
[1769368971977,0.001,2835.1,2833.7,1.24563367]
[1769368972371,0.001,2835.1,2833.7,0.36339491]
[1769368972578,0.001,2835.1,2833.6,0.88226784]
[1769368972778,0.001,2835.1,2833.7,0.10488777]
[1769368973107,0.88151073,2836.1,2834.4,0.10488777]
[1769368973405,0.001,2836.2,2834.7,0.88192754]
[1769368973768,0.001,2836.2,2834.6,0.10488777]
[1769368974115,1.37700407,2836.1,2834.5,0.88197506]
[1769368974269,2.457,2836.0,2834.1,0.88210749]
[1769368974596,0.2335703,2836.0,2834.3,0.88202987]
[1769368974806,0.2335703,2836.0,2834.2,0.88206143]
[1769368974966,0.2335703,2836.0,2834.1,0.98698238]
[1769368975167,1.4498171,2835.9,2834.2,1.40753165]
[1769368975469,1.4498171,2835.9,2834.0,1.62114317]
[1769368975470,1.11518683,2835.7,2834.0,1.62114317]
[1769368975697,1.11518683,2835.7,2834.0,0.739]
[1769368976222,5.781698,2835.6,2834.0,0.739]
[1769368976368,3.505904,2835.6,2834.0,0.739]
[1769368977509,0.88167871,2835.5,2834.0,0.739]
[1769368977679,0.44083936,2835.4,2834.0,0.739]
[1769368978064,0.44083936,2835.4,2833.2,0.10488777]
[1769368978065,13.32843601,2835.4,2833.2,0.10488777]
[1769368978266,3.615265,2834.8,2833.1,0.88242171]
[1769368978465,3.615265,2834.8,2832.6,0.10488777]
[1769368978466,13.12116695,2834.9,2833.0,0.8824473]
[1769368978874,13.12116695,2834.9,2833.1,0.10488777]
[1769368979079,1.31211669,2834.8,2833.3,0.88233248]
[1769368979277,0.3615703,2835.1,2833.2,0.88237611]
[1769368979475,0.88183421,2835.0,2833.4,0.88233218]
[1769368979698,0.88183421,2835.0,2833.3,0.98724964]
[1769368979898,0.88183421,2835.0,2833.2,0.88237429]
[1769368980297,0.88183421,2835.0,2833.1,0.88240667]
[1769368980499,0.4770683,2834.9,2833.2,0.88239176]
[1769368981292,14.21017691,2835.4,2833.7,0.10488777]
[1769368981580,5.83255274,2835.9,2834.5,0.10488777]
[1769368981581,2.33139506,2835.9,2834.5,0.10488777]
[1769368981786,13.76917461,2835.9,2833.6,11.81113234]
[1769368981994,13.76917461,2835.9,2834.0,0.88214042]
[1769368981995,12.88759665,2835.8,2834.0,0.88214042]
[1769368982199,12.88759665,2835.6,2833.8,0.739]
[1769368982426,6.896968,2835.3,2833.8,0.739]
[1769368982583,0.2335703,2835.5,2833.8,0.739]
[1769368982788,12.88759665,2835.4,2833.8,0.739]
[1769368983106,1.30330209,2835.3,2833.8,0.739]
[1769368983435,1.30330209,2835.3,2833.0,11.91602011]
[1769368983436,12.74934181,2835.1,2832.5,12.71562787]
[1769368983717,0.88188519,2834.9,2833.2,0.10488777]
[1769368983904,0.88188519,2834.9,2833.3,0.03529452]
[1769368984081,0.3615703,2835.2,2833.4,0.10488777]
[1769368984277,1.44142142,2835.2,2833.6,0.10488777]
[1769368984480,1.44142142,2835.2,2833.7,0.10488777]
[1769368984720,1.44142142,2835.2,2833.4,0.10488777]
[1769368984905,1.44142142,2835.2,2833.8,0.10488777]
[1769368985102,12.74934181,2835.8,2832.9,12.71562787]
[1769368985302,3.877009,2835.3,2833.2,0.10488777]
[1769368985506,4.26530325,2835.9,2834.1,0.88211425]
[1769368985814,0.739,2835.9,2834.1,0.98700202]
[1769368986013,1.62055809,2835.9,2834.3,0.10488777]
[1769368986215,2.52868991,2835.9,2834.5,0.10488777]
[1769368986419,0.739,2835.9,2834.6,0.03527834]
[1769368986618,0.001,2836.0,2834.7,0.10488777]
[1769368986918,0.001,2836.0,2834.5,0.10488777]
[1769368987079,0.88253161,2836.0,2834.6,0.10488777]
[1769368987509,0.88253161,2836.0,2834.6,0.986828]
[1769368987510,0.001,2836.0,2834.6,0.986828]
[1769368987703,0.001,2836.0,2834.4,0.88201845]
[1769368988017,0.001,2835.0,2833.6,0.002]
[1769368989227,12.75034181,2835.0,2833.6,0.002]
[1769368989516,12.75034181,2835.0,2833.4,0.002]
[1769368989517,0.88198976,2834.5,2832.7,0.10488777]
[1769368989687,0.88198976,2834.5,2832.8,0.88251906]
[1769368989688,1.71591791,2834.4,2832.8,0.88251906]
[1769368989882,1.71591791,2834.4,2832.9,0.01406825]
[1769368990112,1.71591791,2834.4,2832.8,0.98740683]
[1769368992187,2.59793963,2834.4,2832.8,0.88251906]
[1769368992496,1.71591791,2834.4,2832.8,0.88251906]
[1769368992697,0.25979092,2834.3,2832.9,0.44126656]
[1769368992886,0.25979092,2834.3,2832.8,0.88251906]
[1769368993211,0.25979092,2834.3,2832.8,0.88251846]
[1769368993422,12.98291211,2834.2,2832.6,0.88257507]
[1769368993625,12.98291211,2834.2,2832.3,0.88267485]
[1769368993829,0.25979092,2834.3,2832.6,0.10488777]
[1769368993982,0.19757088,2834.2,2832.6,0.10488777]
[1769368994188,0.2335703,2834.4,2832.7,0.10488777]
[1769368994386,12.98291211,2834.0,2832.2,0.88270454]
[1769368995299,0.2335703,2834.2,2832.3,0.10488777]
[1769368995492,0.2335703,2834.3,2832.3,0.10488777]
[1769368995705,0.2335703,2834.1,2832.4,0.88264369]
[1769368995904,0.2335703,2834.1,2832.5,0.44132185]
[1769368995905,28.81889868,2834.1,2832.5,0.44132185]
[1769368996113,7.420782,2834.0,2832.5,0.44132185]
[1769368996314,7.420782,2834.0,2832.3,0.88267154]
[1769368996315,12.53538368,2833.9,2832.3,0.88267154]
[1769368996516,12.53538368,2833.9,2831.9,0.84388777]
[1769368996517,5.661574,2833.8,2832.2,0.88268986]
[1769368996733,4.824365,2833.8,2832.3,0.88266865]
[1769368997120,12.53538368,2833.7,2831.9,0.739]
[1769368997363,12.53538368,2833.7,2832.1,0.8827148]
[1769368997364,5.010038,2833.6,2832.1,0.8827148]
[1769368997511,1.75454217,2833.5,2832.0,0.88274764]
[1769368997712,1.75454217,2833.5,2831.9,4.27016952]
[1769368997713,2.63684355,2833.5,2831.9,4.27016952]
[1769368997926,1.75454217,2833.5,2832.0,0.88276836]
[1769368998308,0.88216299,2834.0,2832.1,0.10488777]
[1769368998626,5.365007,2833.9,2832.0,0.98765613]
[1769368998825,3.52858151,2834.1,2832.0,0.98765613]
[1769368998826,0.88213338,2834.1,2832.4,0.10488777]
[1769368999026,0.88213338,2834.1,2832.2,0.10488777]
[1769368999234,13.41748811,2834.2,2832.2,0.10488777]
[1769368999400,1.34174881,2834.1,2832.2,1.48194928]
[1769368999733,0.88214537,2834.0,2832.3,0.88267485]
[1769368999903,3.087,2833.9,2832.3,0.88267485]
[1769369000099,19.57624168,2833.7,2832.2,1.37706151]
[1769369000312,7.60858,2833.6,2832.1,0.88271812]
[1769369000713,12.53538368,2833.7,2832.2,0.88270309]
[1769369000929,12.53538368,2833.7,2832.1,0.88271157]
[1769369001250,12.53538368,2833.7,2832.5,0.002]
[1769369001547,1.2768954,2833.6,2832.5,0.002]
[1769369002448,1.34174881,2834.1,2832.5,0.002]
[1769369002605,2.22386497,2834.1,2832.5,0.002]
[1769369003238,12.53538368,2833.9,2832.5,0.002]
[1769369004023,1.34174881,2834.1,2832.5,0.002]
[1769369004342,0.2335703,2834.1,2832.5,0.002]
[1769369004515,0.8820636,2834.3,2832.6,0.10488777]
[1769369004720,12.53538368,2834.4,2832.7,0.035302]
[1769369004921,6.854647,2834.3,2832.5,12.6800712]
[1769369005137,14.56258921,2834.2,2832.6,1.26800712]
[1769369005321,0.2335703,2834.1,2832.5,0.002]
[1769369005917,14.56258921,2834.2,2832.6,0.10488777]
[1769369005918,2.02720553,2834.2,2832.6,0.10488777]
[1769369006244,0.88202346,2834.4,2832.5,12.6800712]
[1769369006444,0.88202346,2834.4,2832.7,0.88255021]
[1769369006445,1.11561987,2834.4,2832.7,0.88255021]
[1769369006841,0.88204957,2834.4,2832.7,0.88255021]
[1769369007543,1.11558246,2834.5,2832.7,0.88255021]
[1769369007848,1.11558246,2834.5,2832.8,3.78]
[1769369008041,0.46434472,2834.4,2832.9,0.46625502]
[1769369008616,5.015997,2834.2,2832.9,0.46625502]
[1769369008946,3.591399,2834.2,2832.8,3.78]
[1769369009344,13.92744566,2834.3,2832.8,3.78]
[1769369009647,1.34637103,2834.4,2832.9,0.88245929]
[1769369009853,0.2335703,2834.3,2832.9,0.88245929]
[1769369010016,0.88196512,2834.6,2832.9,0.88245929]
[1769369010339,0.88196512,2834.6,2833.0,0.81924341]
[1769369010541,0.739,2834.7,2833.1,4.66242561]
[1769369010750,1.62092883,2834.7,2833.1,4.66242561]
[1769369011052,0.001,2835.0,2833.3,0.10488777]
[1769369011260,0.001,2835.0,2833.3,12.78295897]
[1769369011552,0.001,2835.0,2834.1,0.10488777]
[1769369011755,0.001,2835.0,2833.9,12.82449267]
[1769369011952,0.001,2835.0,2834.0,0.10488777]
[1769369012536,0.001,2835.0,2834.0,0.88214537]
[1769369013552,0.001,2835.0,2833.9,0.8821535]
[1769369013757,0.001,2834.8,2834.0,0.441096]
[1769369014156,12.23191968,2834.8,2833.2,0.739]
[1769369014322,12.23091968,2834.6,2833.2,0.739]
[1769369014652,6.400913,2834.7,2833.2,1.62137414]
[1769369014889,4.450037,2834.7,2833.2,1.62138738]
[1769369015051,0.001,2834.8,2833.2,1.62138738]
[1769369015356,0.001,2834.8,2833.2,2.13650796]
[1769369016946,0.001,2834.8,2833.2,14.7811989]
[1769369017146,0.001,2834.8,2833.4,0.10488777]
[1769369017334,0.001,2834.8,2833.2,14.7811989]
[1769369017735,0.001,2834.8,2833.6,0.10488777]
[1769369017950,0.001,2834.8,2833.6,13.91964881]
[1769369018930,0.001,2834.8,2833.9,0.8821765]
[1769369019457,0.001,2836.0,2834.4,12.64469094]
[1769369019656,0.001,2836.0,2834.7,0.10488777]
[1769369019833,0.001,2836.0,2834.9,0.10488777]
[1769369020227,0.001,2836.0,2834.7,0.10488777]
[1769369020552,0.001,2836.0,2834.6,0.10488777]
[1769369021054,0.001,2836.0,2834.9,0.88186532]
[1769369021229,0.001,2836.0,2835.0,0.45142144]
[1769369021628,0.001,2836.0,2833.9,12.53980317]
[1769369021629,6.989891,2835.9,2833.9,12.53980317]
[1769369021857,0.001,2836.0,2834.6,0.88195792]
[1769369022060,0.001,2836.0,2834.0,3.63344017]
[1769369022264,0.001,2836.0,2834.6,0.88195337]
[1769369022434,0.001,2836.0,2834.6,1.32295445]
[1769369022758,0.001,2836.0,2834.7,0.88192172]
[1769369022929,0.001,2836.0,2834.2,3.5283076]
[1769369023126,0.001,2836.0,2834.4,0.88199812]
[1769369023558,0.001,2836.0,2834.5,0.8819893]
[1769369023752,0.001,2836.0,2834.4,0.88200417]
[1769369024464,0.001,2836.0,2834.5,0.88198506]
[1769369024664,0.001,2836.0,2834.5,1.32300426]
[1769369024966,0.001,2836.0,2834.5,1.32300824]
[1769369025661,0.001,2836.0,2834.5,0.4410192]
[1769369025960,0.001,2836.0,2834.5,1.3230042]
[1769369026263,0.001,2836.0,2834.5,1.42789197]
[1769369026582,0.001,2835.8,2834.9,0.10488777]
[1769369026733,0.001,2836.2,2835.3,12.64469094]
[1769369026936,1.62006004,2837.5,2835.5,0.10488777]
[1769369027144,21.94034768,2837.4,2835.5,1.27495787]
[1769369027348,12.23091968,2837.3,2835.5,1.27495787]
[1769369027575,13.11205702,2837.3,2835.6,0.88164762]
[1769369028137,0.88113734,2837.3,2835.7,0.10488777]
[1769369028455,0.2335703,2837.0,2835.5,2.15661432]
[1769369028662,1.246449,2836.9,2835.4,0.88168734]
[1769369028865,1.246449,2836.9,2835.5,0.88167549]
[1769369029049,12.46448998,2836.6,2835.2,0.739]
[1769369029381,12.23091968,2836.6,2835.2,0.739]
[1769369029544,0.88136788,2836.5,2835.2,0.739]
[1769369030474,15.75639121,2836.6,2835.2,0.739]
[1769369030475,0.2335703,2836.6,2835.2,0.739]
[1769369030662,12.46448998,2836.6,2835.2,0.739]
[1769369030865,1.3345811,2836.5,2835.2,0.739]
[1769369032232,1.3345811,2836.5,2835.2,1.62076055]
[1769369032436,0.18396756,2837.6,2835.2,1.62076055]
[1769369032437,0.2335703,2836.9,2835.2,1.62076055]
[1769369033576,3.088,2836.8,2835.2,0.739]
[1769369033965,0.88130574,2836.7,2835.2,0.739]
[1769369034944,5.908389,2836.5,2835.2,0.739]
[1769369035141,12.23091968,2836.6,2835.2,0.739]
[1769369035348,1.31122254,2836.5,2835.2,0.739]
[1769369036086,0.88139895,2836.4,2835.2,0.739]
[1769369037283,4.91148,2836.3,2834.5,0.4410192]
[1769369037577,12.46448998,2836.2,2834.5,0.8819847]
[1769369037904,12.23091968,2836.0,2833.9,0.739]
[1769369038189,12.23091968,2835.4,2833.9,1.62117446]
[1769369038545,0.2335703,2835.5,2833.9,1.62117446]
[1769369038778,0.2335703,2835.5,2835.1,0.002]
[1769369038973,0.2335703,2835.5,2834.0,0.002]
[1769369040297,12.23091968,2835.3,2834.0,3.782]
[1769369040587,12.46448998,2835.1,2834.0,0.002]
[1769369040786,7.705669,2834.8,2834.0,0.002]
[1769369040952,0.7705669,2834.7,2834.0,0.002]
[1769369041152,2.9021,2834.8,2834.0,0.002]
[1769369041353,0.2335703,2834.9,2834.0,0.002]
[1769369041554,12.23091968,2835.5,2834.0,0.002]
[1769369041754,0.88168484,2835.5,2834.0,0.002]
[1769369042154,12.23091968,2834.9,2834.0,0.002]
[1769369042359,13.77571252,2834.8,2834.0,0.002]
[1769369042560,13.77571252,2834.8,2833.4,0.002]
[1769369043195,5.06336,2834.7,2833.4,0.002]
[1769369043352,0.2335703,2834.6,2833.4,0.002]
[1769369044055,12.11755177,2834.7,2833.4,0.002]
[1769369044306,1.34287743,2834.6,2833.4,0.002]
[1769369044459,0.128,2834.7,2833.4,0.002]
[1769369044654,1.00993628,2834.7,2833.4,0.03729328]
[1769369044898,1.00993628,2834.7,2833.4,0.002]
[1769369045077,1.00993052,2834.7,2833.4,0.002]
[1769369045561,1.00990495,2834.8,2833.4,0.002]
[1769369045788,12.11755177,2834.5,2833.4,0.002]
[1769369046068,12.11755177,2834.2,2833.1,0.002]
[1769369046412,12.35112207,2833.7,2831.6,12.97746957]
[1769369046558,2.323006,2833.6,2831.9,0.88278421]
[1769369046763,1.46741281,2833.5,2831.8,0.88282592]
[1769369046992,1.46741281,2833.5,2831.9,0.88279499]
[1769369047161,1.46741281,2833.5,2831.8,0.88281145]
[1769369047369,1.46741281,2833.5,2831.7,0.10488777]
[1769369047569,1.46741281,2833.5,2831.9,0.88277795]
[1769369047795,1.46741281,2833.5,2832.0,0.8847664]
[1769369047972,1.46741281,2833.5,2832.0,0.002]
[1769369048485,2.34973221,2833.5,2832.0,0.002]
[1769369048686,1.46741281,2833.5,2832.1,0.10488777]
[1769369048993,0.2335703,2833.7,2832.0,0.002]
[1769369050693,0.8822699,2833.6,2832.0,0.002]
[1769369050889,0.2335703,2833.7,2832.7,0.002]
[1769369051188,1.11581359,2833.7,2832.7,0.002]
[1769369051396,1.32333654,2833.6,2832.7,0.002]
[1769369051894,13.44088831,2833.6,2832.7,0.002]
[1769369052594,14.32317486,2833.6,2832.7,0.002]
[1769369052796,0.882052,2834.3,2832.7,0.002]
[1769369053288,0.88204026,2834.4,2832.7,0.002]
[1769369053493,5.169965,2834.3,2832.7,0.002]
[1769369054191,12.35112207,2834.0,2832.7,0.002]
[1769369054694,3.52908354,2834.5,2832.7,0.002]
[1769369054695,0.001,2834.5,2833.0,12.97746957]
[1769369054897,0.001,2834.5,2832.9,3.52993624]
[1769369054898,0.001,2834.5,2833.1,1.65074058]
[1769369055062,0.128,2834.4,2832.8,0.88250549]
[1769369055265,0.128,2834.3,2832.7,0.002]
[1769369055498,0.128,2834.3,2832.8,0.88251619]
[1769369055695,0.2335703,2834.4,2832.8,0.88251619]
[1769369055866,0.2335703,2834.4,2832.7,0.10688777]
[1769369055867,0.2335703,2834.4,2832.7,12.6530848]
[1769369056072,0.128,2834.4,2832.8,1.37019625]
[1769369056283,0.001,2834.5,2833.2,12.54619703]
[1769369056678,0.001,2834.5,2833.2,13.42857357]
[1769369057177,0.001,2834.5,2833.3,0.03529453]
[1769369057383,0.001,2834.5,2833.2,13.42857357]
[1769369057584,0.001,2834.5,2833.3,1.73112036]
[1769369057789,0.001,2834.5,2833.3,1.83600813]
[1769369058006,0.001,2834.5,2833.3,1.69582583]
[1769369058206,0.001,2834.5,2833.5,12.6510848]
[1769369058388,0.001,2834.5,2833.5,12.54619703]
[1769369058700,0.001,2834.5,2833.7,0.88223876]
[1769369059209,0.88166593,2835.6,2833.8,0.10488777]
[1769369059408,3.097,2836.0,2834.0,12.54619703]
[1769369059605,3.097,2836.0,2834.0,12.6510848]
[1769369059921,0.2335703,2835.9,2834.0,12.6510848]
[1769369060087,1.24934111,2835.9,2834.2,12.6510848]
[1769369060808,1.24934111,2835.9,2834.3,0.882052]
[1769369061209,2.13090668,2835.9,2834.3,0.882052]
[1769369061412,12.07592505,2835.5,2833.7,0.88222163]
[1769369061579,12.07592505,2835.4,2833.8,0.88219819]
[1769369061907,13.51708786,2835.3,2833.6,2.13688731]
[1769369062105,13.51708786,2835.3,2833.8,0.88220428]
[1769369062274,13.51708786,2835.3,2833.7,0.88221645]
[1769369062478,13.51708786,2835.3,2833.6,3.52903632]
[1769369062777,13.51708786,2835.3,2833.4,13.42852921]
[1769369062982,2.08933436,2835.3,2833.6,12.54619703]
[1769369063201,0.88174185,2835.3,2833.7,1.2546197]
[1769369063749,1.0,2835.1,2833.7,1.2546197]
[1769369065234,1.0,2835.1,2833.8,0.88220763]
[1769369065441,1.0,2835.1,2833.7,2.13685005]
[1769369065628,1.88180819,2835.1,2833.5,3.52917066]
[1769369065929,1.0,2835.1,2833.7,0.88223172]
[1769369066130,1.0,2835.1,2833.8,0.0352883]
[1769369066336,1.0,2835.1,2833.8,12.58148533]
[1769369066501,1.0,2835.1,2833.8,12.54619703]
[1769369066703,1.0,2835.1,2833.9,1.34284288]
[1769369067203,13.32626616,2835.9,2833.9,1.34284288]
[1769369067204,14.33583559,2835.9,2834.1,0.88211425]
[1769369067446,0.128,2835.8,2834.1,0.88211425]
[1769369067632,14.20783559,2835.9,2834.1,13.53319905]
[1769369067633,2.13191054,2835.9,2834.1,13.53319905]
[1769369067804,0.88256943,2835.9,2834.1,13.53319905]
[1769369068417,0.88256943,2835.9,2834.3,0.10488777]
[1769369069449,0.001,2835.9,2834.4,13.42821791]
[1769369070446,0.001,2835.9,2834.5,12.6510848]
[1769369070664,12.07592505,2835.7,2833.9,2.08184288]
[1769369070811,12.07592505,2835.6,2833.9,0.739]
[1769369071151,12.07592505,2835.4,2833.9,0.739]
[1769369071350,0.88167871,2835.5,2834.0,0.88213984]
[1769369071548,0.44082923,2835.4,2833.9,1.621156]
[1769369071763,0.44082923,2835.4,2833.9,0.739]
[1769369071916,0.44082923,2835.4,2833.9,1.62117589]
[1769369072118,0.44082923,2835.4,2833.9,1.62117562]
[1769369072338,0.44082923,2835.4,2833.9,0.739]
[1769369072825,0.44082923,2835.4,2833.9,1.62117338]
[1769369073338,0.8817409,2835.3,2833.9,1.62117338]
[1769369073539,1.36667338,2835.3,2834.0,3.78]
[1769369073724,0.48493248,2835.3,2834.0,3.78]
[1769369073923,0.2335703,2835.8,2834.0,3.78]
[1769369073924,0.2335703,2835.6,2834.0,3.78]
[1769369074120,0.2335703,2835.6,2834.1,0.002]
[1769369074966,0.2335703,2835.6,2834.1,0.03728457]
[1769369075251,0.2335703,2835.6,2834.1,0.002]
[1769369075746,0.88167871,2835.5,2834.1,0.88411425]
[1769369075944,1.34585744,2835.5,2834.2,0.46641143]
[1769369076119,14.32008867,2835.5,2834.2,0.46641143]
[1769369076319,14.32008867,2835.5,2834.1,0.002]
[1769369076320,12.97423123,2835.3,2834.1,0.002]
[1769369076851,12.97423123,2835.1,2834.1,0.002]
[1769369077045,13.20780153,2835.4,2834.1,0.002]
[1769369077815,0.8817409,2835.3,2834.1,0.002]
[1769369078133,0.88166941,2835.6,2834.1,0.002]
[1769369078336,0.44081653,2835.5,2834.1,12.9276073]
[1769369078742,1.0,2835.4,2834.1,12.9276073]
[1769369080535,0.44081653,2835.5,2834.2,13.84297374]
[1769369080741,0.88165424,2835.6,2834.2,13.80769042]
[1769369081754,0.88163294,2835.7,2834.2,13.80769042]
[1769369083056,13.85586417,2835.7,2834.1,0.002]
[1769369083637,1.0,2835.5,2834.1,0.002]
[1769369083837,1.0,2835.5,2834.1,0.88411337]
[1769369084070,1.0,2835.5,2834.2,0.88207828]
[1769369084232,2.48558642,2835.5,2834.3,1.38096856]
[1769369084427,0.88160516,2835.8,2834.3,14.34185794]
[1769369084652,0.001,2835.9,2834.7,13.03049507]
[1769369084856,0.001,2835.9,2834.8,0.03527584]
[1769369085051,0.001,2835.9,2834.7,13.03049507]
[1769369085740,0.001,2835.9,2834.7,12.9256073]
[1769369085931,0.001,2835.9,2834.8,1.30304951]
[1769369086229,0.001,2835.5,2834.8,1.30304951]
[1769369086668,0.001,2835.5,2834.8,2.18494203]
[1769369088146,0.001,2835.9,2834.8,15.2154371]
[1769369088530,0.001,2835.9,2835.0,12.9256073]
[1769369088760,0.001,2835.9,2835.1,2.18485262]
[1769369089362,0.001,2836.6,2835.1,15.21534769]